bitfinex/quotes_BTCUSD_20260311
["timestamp","ask_amount","ask_price","bid_price","bid_amount"]
[1773237564675,0.07123623,70190.0,70162.0,0.15301329]
[1773237565135,0.07123623,70190.0,70164.0,0.15301329]
[1773237565292,0.07123623,70190.0,70165.0,0.29420655]
[1773237565635,0.07123623,70190.0,70166.0,0.14119326]
[1773237565824,0.0712271,70198.0,70169.0,0.15301329]
[1773237565964,0.00148,70197.0,70173.0,0.15301329]
[1773237566194,0.00148,70197.0,70174.0,0.14119326]
[1773237566369,0.00148,70197.0,70175.0,0.14119326]
[1773237566773,0.00148,70197.0,70176.0,0.14119326]
[1773237567005,0.00148,70197.0,70177.0,0.14119326]
[1773237567211,0.00148,70197.0,70178.0,0.14119326]
[1773237567325,0.00148,70197.0,70179.0,0.14119326]
[1773237567553,0.00148,70197.0,70180.0,0.14119326]
[1773237567784,0.07122912,70196.0,70177.0,0.00148]
[1773237568572,0.15547115,70195.0,70177.0,0.00148]
[1773237568978,0.15547115,70195.0,70171.0,0.00148]
[1773237569170,0.15547115,70195.0,70171.0,0.11441247]
[1773237569372,0.07122912,70196.0,70171.0,0.00133]
[1773237569592,0.07122912,70196.0,70171.0,0.15426829]
[1773237569757,7.5e-05,70172.0,70171.0,0.22552279]
[1773237569956,0.00148,70188.0,70172.0,0.15301329]
[1773237570204,7.5e-05,70181.0,70172.0,0.15301329]
[1773237570404,7.5e-05,70181.0,70173.0,0.00148]
[1773237570804,7.5e-05,70181.0,70172.0,0.15301329]
[1773237570805,7.5e-05,70181.0,70171.0,0.00148]
[1773237571006,7.5e-05,70185.0,70172.0,0.11285175]
[1773237571186,7.5e-05,70190.0,70173.0,0.15301329]
[1773237571393,7.5e-05,70190.0,70171.0,0.34974669]
[1773237571394,7.5e-05,70198.0,70176.0,0.11285175]
[1773237571575,0.07130253,70198.0,70178.0,0.15301329]
[1773237571770,0.07130253,70198.0,70180.0,0.15301329]
[1773237572029,7.5e-05,70198.0,70182.0,0.15301329]
[1773237572767,7.5e-05,70203.0,70182.0,0.15301329]
[1773237572969,7.5e-05,70203.0,70183.0,0.15301329]
[1773237573935,7.5e-05,70203.0,70184.0,0.0712413]
[1773237574328,0.15554615,70203.0,70179.0,0.07124618]
[1773237574522,0.15554615,70203.0,70180.0,0.00148]
[1773237574726,0.001555,70203.0,70180.0,0.00148]
[1773237574959,0.001555,70203.0,70180.0,0.15449329]
[1773237576193,0.07122304,70202.0,70180.0,0.22573802]
[1773237576976,0.07122304,70202.0,70181.0,0.15301329]
[1773237577156,0.07122304,70202.0,70187.0,0.11285175]
[1773237577353,0.07122304,70202.0,70187.0,0.00148]
[1773237577577,0.07122304,70202.0,70188.0,0.15301329]
[1773237577955,7.5e-05,70203.0,70189.0,0.07123623]
[1773237578206,0.07121538,70210.0,70190.0,0.15301329]
[1773237578397,7.5e-05,70212.0,70191.0,0.15301329]
[1773237578398,0.07129374,70207.0,70191.0,0.15301329]
[1773237578561,7.5e-05,70220.0,70191.0,0.15301329]
[1773237578761,7.5e-05,70220.0,70190.0,0.11285175]
[1773237578762,0.07127994,70220.0,70193.0,0.15301329]
[1773237578962,0.07127994,70220.0,70194.0,0.15301329]
[1773237579342,0.00022001,70209.0,70196.0,0.15301329]
[1773237579714,0.00022001,70209.0,70197.0,0.00148]
[1773237580206,0.07143663,70209.0,70198.0,0.0727071]
[1773237580833,0.00022001,70209.0,70198.0,0.0727071]
[1773237581028,0.07142861,70217.0,70198.0,0.0727071]
[1773237581029,0.07120884,70216.0,70199.0,0.15341276]
[1773237581784,0.07120884,70216.0,70198.0,0.0727071]
[1773237581989,0.07120884,70216.0,70199.0,0.00148]
[1773237582196,0.07120884,70216.0,70200.0,0.00148]
[1773237583053,0.07120884,70216.0,70193.0,0.11285175]
[1773237583054,0.07120884,70216.0,70192.0,0.18408469]
[1773237583365,0.21267869,70216.0,70193.0,0.00148]
[1773237583802,0.21267869,70216.0,70194.0,0.00148]
[1773237584203,0.21267869,70216.0,70195.0,0.07123014]
[1773237584408,0.07120884,70216.0,70195.0,0.07123014]
[1773237584621,0.07120884,70216.0,70196.0,0.15341276]
[1773237585018,0.07120884,70216.0,70195.0,0.07123014]
[1773237585644,0.12803251,70210.0,70181.0,0.07124345]
[1773237585925,0.14294985,70209.0,70181.0,0.07124345]
[1773237586303,0.14294985,70209.0,70182.0,0.00148]
[1773237586304,0.14146985,70207.0,70182.0,0.00148]
[1773237586478,0.14146985,70207.0,70180.0,0.07144523]
[1773237586479,0.14146985,70207.0,70185.0,7.5e-05]
[1773237587502,0.14146985,70207.0,70182.0,0.00148]
[1773237588188,0.07121898,70206.0,70182.0,0.00148]
[1773237588392,0.14146985,70205.0,70198.0,7.5e-05]
[1773237588611,0.07121898,70206.0,70198.0,7.5e-05]
[1773237589337,0.07114398,70206.0,70198.0,7.5e-05]
[1773237590161,0.07121898,70206.0,70198.0,7.5e-05]
[1773237590373,0.07121898,70206.0,70199.0,0.00148]
[1773237591024,0.07121898,70206.0,70196.0,0.00148]
[1773237593346,0.07121898,70206.0,70203.0,7.5e-05]
[1773237594096,0.07114398,70206.0,70203.0,7.5e-05]
[1773237594301,0.07114398,70206.0,70185.0,0.0712398]
[1773237594499,0.07114398,70206.0,70186.0,0.00148]
[1773237595100,0.07114398,70206.0,70186.0,0.15151931]
[1773237595526,0.07114398,70206.0,70190.0,0.004]
[1773237596761,0.07114398,70206.0,70191.0,0.15003931]
[1773237597389,0.07143893,70207.0,70191.0,0.15003931]
[1773237598793,0.07143893,70207.0,70191.0,0.2212731]
[1773237599185,0.00022001,70206.0,70191.0,0.07123379]
[1773237599399,0.00022001,70206.0,70192.0,0.15003931]
[1773237599602,0.07121892,70207.0,70194.0,0.14988974]
[1773237600389,0.13968949,70206.0,70190.0,0.004]
[1773237600592,0.14116949,70206.0,70192.0,0.00148]
[1773237600799,0.14116949,70206.0,70190.0,0.004]
[1773237600800,0.07121999,70205.0,70190.0,0.004]
[1773237601012,0.00022001,70217.0,70191.0,0.15003931]
[1773237601213,0.0712133,70212.0,70191.0,0.16873683]
[1773237601415,0.07143121,70214.0,70192.0,0.15003931]
[1773237602041,0.07143121,70214.0,70191.0,0.16873683]
[1773237602042,0.00022001,70214.0,70194.0,0.14988971]
[1773237602256,7.5e-05,70220.0,70197.0,0.15003931]
[1773237602466,0.07142085,70224.0,70198.0,0.15003931]
[1773237602684,0.07127267,70229.0,70207.0,0.16873683]
[1773237602900,7.5e-05,70229.0,70210.0,0.15003931]
[1773237603319,0.07126559,70234.0,70210.0,0.15003931]
[1773237603562,7.5e-05,70234.0,70210.0,0.15003931]
[1773237603770,7.5e-05,70238.0,70213.0,0.16873683]
[1773237603988,0.07126166,70238.0,70214.0,0.15003931]
[1773237604228,0.54042843,70229.0,70204.0,0.16885618]
[1773237604434,0.13968949,70219.0,70190.0,0.004]
[1773237604666,0.13968949,70219.0,70191.0,0.00148]
[1773237604866,0.00148,70228.0,70194.0,0.15003931]
[1773237604867,0.21088616,70228.0,70194.0,0.15003931]
[1773237604985,0.00148,70226.0,70194.0,0.15003931]
[1773237605184,0.00148,70227.0,70194.0,0.15003931]
[1773237605380,0.13968949,70227.0,70194.0,0.15003931]
[1773237605606,0.28169782,70227.0,70194.0,0.15003931]
[1773237605810,0.07119667,70228.0,70194.0,0.15003931]
[1773237606779,0.07119667,70230.0,70216.0,7.5e-05]
[1773237606996,7.5e-05,70238.0,70216.0,0.001555]
[1773237606997,0.0711906,70234.0,70216.0,0.001555]
[1773237607208,0.07118926,70236.0,70217.0,0.14959062]
[1773237607938,0.07118755,70237.0,70225.0,7.5e-05]
[1773237608167,0.07126236,70238.0,70225.0,7.5e-05]
[1773237608366,0.07118349,70241.0,70226.0,0.00148]
[1773237608686,0.07118349,70241.0,70227.0,0.00148]
[1773237608904,0.07125849,70242.0,70220.0,7.5e-05]
[1773237609118,0.00022001,70238.0,70222.0,0.00148]
[1773237609502,0.00022001,70238.0,70229.0,7.5e-05]
[1773237610023,0.08242051,70244.0,70230.0,0.15003931]
[1773237610221,0.0824205,70244.0,70230.0,0.15151931]
[1773237610678,0.0824207,70244.0,70230.0,0.00148]
[1773237610869,0.0824207,70244.0,70229.0,0.07119563]
[1773237611093,0.0824207,70244.0,70220.0,7.5e-05]
[1773237611094,0.14116949,70243.0,70220.0,7.5e-05]
[1773237611828,0.14116949,70243.0,70220.0,0.07127972]
[1773237612032,0.00148,70242.0,70220.0,0.07127972]
[1773237612368,0.0824207,70244.0,70221.0,0.15003931]
[1773237612771,0.0824207,70244.0,70222.0,0.07120275]
[1773237612981,0.0824207,70244.0,70223.0,0.00148]
[1773237612982,0.13968949,70243.0,70223.0,0.00148]
[1773237613271,0.13968949,70239.0,70212.0,0.00148]
[1773237613417,0.13968949,70237.0,70212.0,0.00148]
[1773237613871,0.13968949,70237.0,70210.0,0.0002]
[1773237614179,0.13968949,70237.0,70211.0,0.001405]
[1773237614353,0.13968949,70237.0,70210.0,0.000125]
[1773237614524,7.5e-05,70212.0,70210.0,0.000125]
[1773237614871,0.13968949,70226.0,70210.0,0.000125]
[1773237614872,0.00148,70223.0,70210.0,0.000125]
[1773237615085,7.5e-05,70216.0,70210.0,0.000125]
[1773237616132,0.07118147,70243.0,70212.0,0.15003931]
[1773237616283,0.07118253,70242.0,70212.0,0.15003931]
[1773237616487,0.07118147,70243.0,70212.0,0.15003931]
[1773237616889,0.08242147,70244.0,70212.0,0.15003931]
[1773237617088,0.01124,70244.0,70214.0,0.15003931]
[1773237617292,0.08242072,70244.0,70214.0,0.15003931]
[1773237617960,0.01124,70244.0,70214.0,0.15003931]
[1773237618419,0.00022001,70237.0,70214.0,0.15003931]
[1773237619005,0.00022001,70237.0,70215.0,0.07120985]
[1773237619006,0.07118856,70236.0,70215.0,0.07120985]
[1773237619211,0.071408,70237.0,70216.0,0.15151931]
[1773237619434,0.071408,70237.0,70215.0,0.07120985]
[1773237619435,0.071408,70237.0,70217.0,0.00148]
[1773237619608,0.07140796,70237.0,70218.0,0.15003931]
[1773237619817,0.07140796,70237.0,70218.0,0.15151931]
[1773237620226,0.00022001,70237.0,70220.0,0.13862381]
[1773237620456,0.01124,70244.0,70221.0,0.13862381]
[1773237621103,0.08242072,70244.0,70222.0,0.07120275]
[1773237621447,0.08242072,70244.0,70223.0,0.00148]
[1773237621787,0.22513629,70244.0,70223.0,0.00133045]
[1773237621960,0.08242072,70244.0,70223.0,0.00133045]
[1773237622584,0.14271557,70243.0,70223.0,0.00133045]
[1773237623092,0.01124,70244.0,70224.0,0.13862381]
[1773237623294,0.01124,70244.0,70226.0,0.13862381]
[1773237623413,0.01124,70244.0,70226.0,0.13831424]
[1773237623626,0.08242064,70244.0,70226.0,0.13800467]
[1773237623839,0.01124,70244.0,70226.0,0.13800467]
[1773237625057,0.01124,70244.0,70228.0,0.13862381]
[1773237626901,0.00022001,70245.0,70228.0,0.13862381]
[1773237627076,0.32405923,70279.0,70224.0,0.07119971]
[1773237627077,0.07115918,70265.0,70233.0,0.0711916]
[1773237627308,0.00022001,70252.0,70235.0,0.13862381]
[1773237627522,0.00022001,70252.0,70235.0,0.23506913]
[1773237627741,0.00022001,70252.0,70236.0,0.13862381]
[1773237628582,0.07115918,70265.0,70235.0,0.23506913]
[1773237628783,0.14271557,70264.0,70236.0,0.00148]
[1773237628959,0.14271557,70264.0,70237.0,0.00152]
[1773237629167,0.14271557,70262.0,70238.0,0.07118653]
[1773237629548,0.14271557,70262.0,70239.0,0.00152]
[1773237629899,0.14271557,70262.0,70239.0,0.14014381]
[1773237630115,0.07115543,70269.0,70239.0,0.14014381]
[1773237630592,0.07157651,70271.0,70239.0,0.14014381]
[1773237630593,1e-08,70271.0,70241.0,0.13862381]
[1773237630811,0.0004224,70294.0,70240.0,0.12788154]
[1773237630812,0.0004224,70294.0,70262.0,0.13862381]
[1773237631021,0.14271557,70293.0,70261.0,0.40522685]
[1773237631229,0.14271557,70293.0,70255.0,0.15012]
[1773237631230,0.14271557,70291.0,70264.0,0.07116019]
[1773237631859,0.00152,70290.0,70264.0,0.07116019]
[1773237632071,0.07113184,70292.0,70265.0,0.13862381]
[1773237632620,0.07112476,70299.0,70265.0,0.13862381]
[1773237632834,0.01124,70301.0,70271.0,0.13862381]
[1773237632994,0.08111407,70310.0,70280.0,0.12788154]
[1773237633196,0.08111407,70310.0,70283.0,0.13862381]
[1773237633446,0.14423557,70309.0,70277.0,0.07114675]
[1773237633659,0.14423557,70309.0,70278.0,0.00152]
[1773237634060,0.14271557,70299.0,70279.0,0.00152]
[1773237634286,0.14271557,70299.0,70280.0,0.00152]
[1773237634287,0.14423557,70299.0,70280.0,0.00152]
[1773237634488,0.14271557,70307.0,70281.0,0.00152]
[1773237634722,0.14271557,70309.0,70282.0,0.00152]
[1773237635021,0.14271557,70309.0,70263.0,0.23819841]
[1773237635022,0.14271557,70309.0,70279.0,0.00152]
[1773237635257,0.08133408,70310.0,70279.0,0.0726243]
[1773237635425,0.08133408,70310.0,70280.0,0.13862381]
[1773237635426,0.07111465,70309.0,70280.0,0.13862381]
[1773237636040,0.00993665,70316.0,70292.0,0.27444903]
[1773237636382,0.0004224,70317.0,70293.0,0.14010381]
[1773237637018,0.52528239,70315.0,70294.0,0.00148]
[1773237637228,0.07110757,70316.0,70296.0,0.0711278]
[1773237637442,0.0004224,70317.0,70297.0,0.00148]
[1773237637673,0.01,70340.0,70300.0,0.12788154]
[1773237637897,0.01,70340.0,70297.0,0.00148]
[1773237637898,0.01,70340.0,70310.0,0.12788154]
[1773237638127,0.00015,70348.0,70297.0,0.00148]
[1773237638128,0.0001728,70357.0,70321.0,0.13862381]
[1773237638332,0.18057455,70370.0,70320.0,0.12788154]
[1773237638333,0.01,70370.0,70340.0,0.12788154]
[1773237638560,0.00902,70370.0,70343.0,0.13862381]
[1773237638781,0.00214699,70375.0,70342.0,0.50082867]
[1773237638783,1e-08,70375.0,70351.0,0.13862381]
[1773237638943,0.07104843,70375.0,70352.0,0.00148]
[1773237639156,1e-08,70375.0,70353.0,0.13862381]
[1773237639301,1e-08,70375.0,70355.0,0.13862381]
[1773237640108,1e-08,70375.0,70356.0,0.00148]
[1773237640311,0.04266572,70417.0,70363.0,0.488014]
[1773237640538,0.0710086,70414.0,70370.0,0.12788154]
[1773237640752,0.01124,70415.0,70381.0,0.14397225]
[1773237641001,0.08224842,70415.0,70382.0,0.00148]
[1773237641208,0.07155619,70418.0,70401.0,0.07102171]
[1773237641209,0.0005486,70418.0,70401.0,0.07102171]
[1773237641419,0.08099332,70430.0,70379.0,0.0710419]
[1773237641597,0.00152,70425.0,70381.0,0.14397225]
[1773237641769,0.14885947,70419.0,70375.0,0.07104795]
[1773237642105,0.54375952,70409.0,70376.0,0.00148]
[1773237642277,0.54375952,70409.0,70374.0,0.07104795]
[1773237642452,0.00152,70408.0,70377.0,0.00148]
[1773237642653,0.54375952,70409.0,70377.0,0.00148]
[1773237642873,0.00152,70408.0,70377.0,0.00148]
[1773237643052,0.00152,70408.0,70378.0,0.00148]
[1773237643255,0.07101566,70407.0,70379.0,0.07104391]
[1773237643554,0.00152,70406.0,70379.0,0.07104391]
[1773237643754,0.12788154,70400.0,70368.0,0.07105502]
[1773237643953,0.12788154,70400.0,70369.0,0.00148]
[1773237644730,0.12788154,70400.0,70365.0,0.19450564]
[1773237644731,0.12788154,70380.0,70359.0,0.07106327]
[1773237644870,0.14885947,70392.0,70359.0,0.07106327]
[1773237645076,0.00152,70395.0,70360.0,0.00148]
[1773237645653,0.07102878,70394.0,70362.0,0.14397225]
[1773237645830,0.12788154,70410.0,70362.0,0.14397225]
[1773237646031,0.14885947,70420.0,70380.0,0.12788154]
[1773237646329,0.07098631,70437.0,70384.0,0.14397225]
[1773237646330,0.07122823,70415.0,70384.0,0.14397225]
[1773237646559,0.07122823,70415.0,70385.0,0.00148]
[1773237646914,0.07122823,70415.0,70382.0,0.12464515]
[1773237646915,0.12788154,70410.0,70386.0,0.00148]
[1773237647093,0.07122823,70415.0,70386.0,0.00148]
[1773237647282,0.07122811,70415.0,70386.0,0.00148]
[1773237647484,0.00022001,70415.0,70388.0,0.21500708]
[1773237647685,1e-08,70415.0,70389.0,0.14397225]
[1773237648091,0.07100778,70415.0,70389.0,0.14397225]
[1773237648618,0.07100778,70415.0,70390.0,0.00152]
[1773237648816,1e-08,70415.0,70388.0,0.07103483]
[1773237649309,0.07100811,70415.0,70388.0,0.07103483]
[1773237649512,1e-08,70415.0,70390.0,0.07103281]
[1773237650939,1e-08,70415.0,70391.0,0.1477464]
[1773237651454,0.08099348,70430.0,70391.0,0.1477464]
[1773237651586,0.08099348,70430.0,70393.0,0.1477464]
[1773237652192,0.14076494,70429.0,70394.0,0.00152]
[1773237652588,0.14076494,70429.0,70395.0,0.00152]
[1773237652790,0.00152,70428.0,70396.0,0.1477464]
[1773237653014,0.14076494,70427.0,70395.0,0.00152]
[1773237653220,0.14076494,70427.0,70392.0,0.07103079]
[1773237653541,0.14076494,70423.0,70389.0,0.07103079]
[1773237653675,0.07099852,70425.0,70393.0,0.00152]
[1773237653876,0.0725179,70425.0,70394.0,0.1477464]
[1773237654286,0.08099316,70430.0,70394.0,0.1477464]
[1773237654287,0.01,70430.0,70394.0,0.1477464]
[1773237654487,0.01,70430.0,70400.0,0.12708402]
[1773237654690,1e-08,70440.0,70412.0,0.1477464]
[1773237654915,1e-08,70440.0,70414.0,0.1477464]
[1773237655337,1e-08,70440.0,70411.0,0.31772473]
[1773237655338,0.07098322,70440.0,70411.0,0.31772473]
[1773237655543,1e-08,70440.0,70416.0,0.07100658]
[1773237655759,0.00022001,70429.0,70391.0,0.0710318]
[1773237655935,0.00022001,70429.0,70392.0,0.1492664]
[1773237656346,0.00152001,70440.0,70411.0,0.31747094]
[1773237656347,1e-08,70440.0,70411.0,0.31747094]
[1773237656744,1e-08,70440.0,70414.0,0.001]
[1773237656946,0.34057522,70470.0,70430.0,0.12708402]
[1773237656947,0.07096093,70462.0,70430.0,0.12708402]
[1773237657145,0.07096093,70462.0,70431.0,0.00107128]
[1773237657574,0.49907623,70485.0,70450.0,0.12708402]
[1773237657791,0.07093305,70489.0,70451.0,0.1492664]
[1773237657989,0.07093305,70489.0,70452.0,0.00152]
[1773237658192,0.07093305,70489.0,70441.0,0.49934013]
[1773237658391,0.14076494,70488.0,70441.0,0.49934013]
[1773237658598,0.14076494,70479.0,70442.0,0.00152]
[1773237658769,0.00152,70478.0,70442.0,0.00152]
[1773237658974,0.07093305,70489.0,70431.0,0.07099045]
[1773237658975,0.14076494,70476.0,70431.0,0.07099045]
[1773237659178,0.14076494,70474.0,70433.0,0.00152]
[1773237659396,1e-08,70490.0,70462.0,0.1477464]
[1773237659566,1e-08,70490.0,70464.0,0.0708087]
[1773237659932,1e-08,70490.0,70465.0,0.00152]
[1773237660072,1e-08,70490.0,70465.0,0.0013705]
[1773237660260,1e-08,70490.0,70464.0,0.0708087]
[1773237660466,1e-08,70490.0,70453.0,0.57085488]
[1773237660467,0.14076494,70489.0,70465.0,0.00152]
[1773237660712,0.14076494,70489.0,70464.0,0.00152]
[1773237660864,0.14076494,70489.0,70460.0,0.00152]
[1773237661063,0.00148,70488.0,70460.0,0.00152]
[1773237661309,0.14076494,70487.0,70460.0,0.00152]
[1773237661485,0.14076494,70487.0,70460.0,0.00137043]
[1773237661689,1e-08,70490.0,70461.0,0.07096124]
[1773237661913,0.14076494,70489.0,70462.0,0.00152]
[1773237662220,0.19801644,70490.0,70447.0,0.00148]
[1773237662221,0.14076494,70479.0,70447.0,0.00148]
[1773237662897,0.14076494,70477.0,70447.0,0.00148]
[1773237663103,0.14076494,70475.0,70447.0,0.00148]
[1773237663473,0.14076494,70489.0,70447.0,0.00148]
[1773237663736,0.14076494,70489.0,70450.0,0.12708402]
[1773237664641,0.14076494,70489.0,70449.0,0.1477464]
[1773237664940,0.14076494,70489.0,70450.0,0.12708402]
[1773237665362,0.14076494,70489.0,70450.0,0.001]
[1773237665680,0.14076494,70487.0,70452.0,0.0709703]
[1773237665861,0.14076494,70485.0,70452.0,0.0709703]
[1773237666034,0.14076494,70485.0,70453.0,0.00152]
[1773237666354,0.14076494,70485.0,70452.0,0.0709703]
[1773237666355,0.14076494,70485.0,70454.0,0.00152]
[1773237666593,0.14076494,70485.0,70444.0,0.07097836]
[1773237666723,0.00152,70486.0,70444.0,0.07097836]
[1773237666724,0.49907623,70469.0,70445.0,0.00152]
[1773237666924,0.00152,70468.0,70445.0,0.00152]
[1773237667154,0.49907623,70469.0,70445.0,0.00152]
[1773237667398,0.07093405,70488.0,70445.0,0.00152]
[1773237667399,0.00152,70477.0,70445.0,0.00152]
[1773237667576,0.00152,70476.0,70445.0,0.00152]
[1773237667781,0.14076494,70487.0,70445.0,0.00152]
[1773237667782,0.00152,70475.0,70446.0,0.07097635]
[1773237667943,0.07093607,70486.0,70427.0,0.07099549]
[1773237667944,0.12708402,70470.0,70427.0,0.07099549]
[1773237668148,0.10933607,70486.0,70430.0,0.12708402]
[1773237668149,0.49907623,70468.0,70430.0,0.12708402]
[1773237668388,0.49907623,70468.0,70428.0,0.00152]
[1773237668586,0.49907623,70468.0,70427.0,0.07099549]
[1773237668810,0.49907623,70468.0,70429.0,0.00152]
[1773237669223,0.14063502,70467.0,70427.0,0.07099549]
[1773237669557,0.14063502,70467.0,70450.0,0.004]
[1773237669774,0.14063502,70467.0,70430.0,0.001]
[1773237669775,0.0709562,70466.0,70444.0,0.00152]
[1773237669978,0.14076494,70465.0,70444.0,0.00152]
[1773237670128,0.0709562,70466.0,70444.0,0.00152]
[1773237670326,0.07095519,70467.0,70431.0,0.07099146]
[1773237670507,0.07095519,70467.0,70432.0,0.00152]
[1773237670706,0.57003109,70468.0,70432.0,0.00152]
[1773237670707,0.07095429,70468.0,70432.0,0.1492664]
[1773237671053,0.49907623,70467.0,70432.0,0.1492664]
[1773237671199,0.07094353,70479.0,70432.0,0.1492664]
[1773237671402,0.12730404,70490.0,70450.0,0.12708402]
[1773237671403,0.00152,70488.0,70450.0,0.12708402]
[1773237671645,0.07093305,70489.0,70451.0,0.00152]
[1773237671845,0.07093305,70489.0,70453.0,0.07096929]
[1773237672789,0.00022002,70490.0,70453.0,0.07096929]
[1773237673086,0.07091177,70511.0,70480.0,0.1477464]
[1773237673294,0.0008746,70512.0,70481.0,0.00152]
[1773237673461,1e-08,70509.0,70482.0,0.1477464]
[1773237673690,1e-08,70509.0,70481.0,0.00152]
[1773237673691,0.00022001,70504.0,70481.0,0.00152]
[1773237673844,0.00022001,70504.0,70482.0,0.07246009]
[1773237674246,1e-08,70512.0,70490.0,0.12708402]
[1773237674465,1e-08,70512.0,70483.0,0.1477464]
[1773237674890,1e-08,70530.0,70501.0,0.1477464]
[1773237675101,1e-08,70530.0,70510.0,0.12696402]
[1773237675302,0.49907623,70528.0,70495.0,0.15392]
[1773237675466,0.14076494,70527.0,70496.0,0.00152]
[1773237675868,0.07089583,70526.0,70497.0,0.070925]
[1773237676067,0.21166077,70526.0,70497.0,0.070925]
[1773237676316,1e-08,70530.0,70497.0,0.070925]
[1773237676452,1e-08,70530.0,70500.0,0.12708402]
[1773237676653,0.14076494,70547.0,70497.0,0.070925]
[1773237676654,0.0708681,70554.0,70510.0,0.12708402]
[1773237676874,0.16441364,70557.0,70511.0,0.1492664]
[1773237676875,1e-08,70541.0,70511.0,0.1492664]
[1773237677074,0.0708813,70541.0,70511.0,0.1492664]
[1773237677282,0.0708813,70541.0,70497.0,0.070925]
[1773237677283,0.0708813,70541.0,70509.0,0.15408]
[1773237677475,1e-08,70541.0,70510.0,0.12860402]
[1773237677679,0.49907623,70571.0,70530.0,0.12708402]
[1773237677883,0.1708585,70564.0,70532.0,0.0708898]
[1773237678114,0.14076494,70563.0,70530.0,0.0708898]
[1773237678316,0.1708585,70564.0,70505.0,0.07091695]
[1773237678317,0.581363,70558.0,70505.0,0.07091695]
[1773237678601,0.14076494,70549.0,70506.0,0.00152]
[1773237678763,0.14076494,70547.0,70506.0,0.00152]
[1773237678959,0.14076494,70545.0,70506.0,0.00152]
[1773237679197,0.00152,70544.0,70506.0,0.00152]
[1773237679398,0.14228494,70544.0,70506.0,0.00152]
[1773237679600,0.00152,70545.0,70507.0,0.1477464]
[1773237679802,0.07086469,70557.0,70510.0,0.12708402]
[1773237680024,0.07086469,70557.0,70511.0,0.13361182]
[1773237680224,0.07086469,70557.0,70510.0,0.15428]
[1773237680225,0.14019821,70549.0,70510.0,0.15428]
[1773237680432,0.14019821,70547.0,70508.0,0.07091393]
[1773237680565,0.14019821,70547.0,70511.0,0.00152]
[1773237680765,0.12708402,70540.0,70512.0,0.00152]
[1773237681040,0.12708402,70540.0,70483.0,0.10982738]
[1773237681041,0.14019821,70528.0,70483.0,0.07093909]
[1773237681159,0.50313704,70529.0,70483.0,0.07093909]
[1773237681160,0.14019821,70519.0,70483.0,0.07093909]
[1773237681376,0.50313704,70498.0,70450.0,0.16486063]
[1773237681612,0.14019821,70489.0,70451.0,0.07097123]
[1773237681837,0.07241405,70488.0,70453.0,0.07096929]
[1773237682041,0.14019821,70487.0,70453.0,0.07096929]
[1773237682175,0.00148,70488.0,70453.0,0.07096929]
[1773237682478,0.00152,70490.0,70453.0,0.07096929]
[1773237683397,0.00152,70489.0,70453.0,0.07096929]
[1773237683564,0.00152,70490.0,70453.0,0.07096929]
[1773237683769,0.14019821,70489.0,70454.0,0.00152]
[1773237683974,0.07093405,70488.0,70455.0,0.07096728]
[1773237684213,0.14171821,70487.0,70455.0,0.07096728]
[1773237685578,0.14171821,70487.0,70455.0,0.07248728]
[1773237685983,0.14019821,70485.0,70455.0,0.07248728]
[1773237686479,0.50313704,70498.0,70455.0,0.07248728]
[1773237686480,0.50313704,70498.0,70460.0,0.12708402]
[1773237686692,0.00152,70493.0,70455.0,0.07248728]
[1773237687140,0.00152,70495.0,70455.0,0.2060991]
[1773237687342,0.00152,70504.0,70470.0,0.12708402]
[1773237687543,0.14019821,70516.0,70471.0,0.12463144]
[1773237687887,0.00152,70515.0,70472.0,0.13513182]
[1773237688065,0.0709079,70514.0,70473.0,0.07094915]
[1773237688260,0.14019821,70513.0,70473.0,0.07094915]
[1773237688461,0.14019821,70513.0,70472.0,0.07094915]
[1773237688462,0.12708402,70500.0,70474.0,0.00156]
[1773237688630,0.14019821,70498.0,70470.0,0.00156]
[1773237689035,0.0709079,70515.0,70470.0,0.00156]
[1773237689036,0.07090589,70517.0,70470.0,0.12864402]
[1773237689285,0.07090589,70517.0,70477.0,0.13361182]
[1773237689588,0.07242365,70519.0,70477.0,0.13361182]
[1773237689787,0.07242365,70519.0,70479.0,0.193384]
[1773237689965,0.07089382,70528.0,70482.0,0.13361182]
[1773237690295,0.00152,70527.0,70481.0,0.0709411]
[1773237690505,0.00152,70527.0,70482.0,0.00156]
[1773237690506,0.12708402,70510.0,70482.0,0.00156]
[1773237690710,0.14019821,70519.0,70482.0,0.00156]
[1773237691010,0.07089382,70528.0,70482.0,0.00176]
[1773237691167,0.14171821,70527.0,70482.0,0.00176]
[1773237691542,0.14171821,70527.0,70483.0,0.13361182]
[1773237691980,0.12708402,70520.0,70483.0,0.07093909]
[1773237692185,0.12708402,70510.0,70482.0,0.07269909]
[1773237692388,0.50313704,70499.0,70476.0,0.00156]
[1773237692509,0.50313704,70499.0,70463.0,0.26514068]
[1773237692510,0.00152,70498.0,70473.0,0.00156]
[1773237692714,0.00152,70498.0,70465.0,0.07095665]
[1773237692715,0.14171821,70498.0,70465.0,0.07095665]
[1773237692920,0.14171821,70498.0,70466.0,0.00156]
[1773237693123,0.50313704,70499.0,70467.0,0.13361182]
[1773237693321,0.00152,70498.0,70467.0,0.13361182]
[1773237693517,0.00152,70498.0,70466.0,0.00156]
[1773237694015,0.070925,70497.0,70467.0,0.07095519]
[1773237695327,0.070925,70498.0,70467.0,0.07095519]
[1773237695516,0.072445,70498.0,70467.0,0.07095519]
[1773237695733,0.072445,70498.0,70460.0,0.00156]
[1773237695860,0.12708402,70490.0,70461.0,0.00156]
[1773237696069,0.07093405,70488.0,70462.0,0.07096023]
[1773237696368,0.07093405,70488.0,70461.0,0.07252023]
[1773237696369,0.07093405,70488.0,70461.0,0.07252106]
[1773237696775,0.00152,70487.0,70461.0,0.07252106]
[1773237697394,2e-05,70487.0,70461.0,0.07252106]
[1773237697922,2e-05,70487.0,70450.0,0.33166736]
[1773237697923,0.12708402,70480.0,70454.0,0.00156]
[1773237698074,0.07094009,70482.0,70455.0,0.07096728]
[1773237698270,0.07250009,70482.0,70455.0,0.07096728]
[1773237698599,0.00156,70481.0,70455.0,0.07096728]
[1773237699071,0.00156,70481.0,70455.0,0.2045791]
[1773237699429,0.07094009,70482.0,70461.0,0.0002]
[1773237700205,0.00156,70481.0,70462.0,0.00156]
[1773237700400,0.00156,70481.0,70460.0,0.0709621]
[1773237700401,0.12708402,70480.0,70454.0,0.00156]
[1773237700858,0.00156,70481.0,70454.0,0.00156]
[1773237701123,0.00156,70480.0,70454.0,0.00156]
[1773237701542,0.12864402,70480.0,70449.0,0.07097256]
[1773237701742,0.12708402,70460.0,70446.0,0.0002]
[1773237701940,0.55349218,70469.0,70432.0,0.3256]
[1773237701941,0.14102776,70468.0,70441.0,0.07098038]
[1773237702163,0.0709562,70466.0,70440.0,0.07098038]